bitfinex/quotes_ETHUSD_20260302
["timestamp","ask_amount","ask_price","bid_price","bid_amount"]
[1772464355248,6.04372829,2017.9,2016.6,0.001]
[1772464356052,1.643,2017.8,2016.6,0.001]
[1772464356266,6.04372829,2017.9,2016.6,0.001]
[1772464356460,1.643,2017.7,2016.6,0.001]
[1772464356967,6.04372829,2017.9,2016.6,0.001]
[1772464357158,6.04372829,2018.2,2016.6,5.86213253]
[1772464357567,7.68672829,2018.1,2016.6,5.86213253]
[1772464357873,1.642,2018.0,2016.6,5.86213253]
[1772464358174,1.642,2017.9,2016.6,5.86213253]
[1772464359167,2.75132396,2019.0,2016.7,1.23964893]
[1772464359366,6.04372829,2018.8,2016.8,5.86113253]
[1772464359671,6.04372829,2018.8,2016.6,0.001]
[1772464360170,1.23831832,2018.9,2016.6,0.001]
[1772464360171,6.04372829,2018.6,2016.6,0.001]
[1772464360365,6.04372829,2018.6,2016.6,5.86213253]
[1772464360585,1.642,2018.5,2016.8,5.86113253]
[1772464360891,6.04372829,2018.6,2016.8,5.86113253]
[1772464361059,6.04372829,2018.6,2017.0,5.86113253]
[1772464361384,1.641,2018.5,2017.0,7.02913253]
[1772464361797,6.04372829,2019.2,2017.1,0.065536]
[1772464362115,0.002,2019.3,2017.4,5.86113253]
[1772464362116,6.04372829,2018.9,2017.4,5.86113253]
[1772464362793,7.68472829,2018.8,2017.4,5.86113253]
[1772464362992,1.64,2018.7,2017.6,5.86113253]
[1772464363214,0.002,2019.3,2017.2,7.10041695]
[1772464363362,1.64,2019.2,2017.5,5.86113253]
[1772464363563,1.64,2019.2,2017.5,6.18179268]
[1772464363775,1.64,2019.2,2017.7,5.86113253]
[1772464364057,0.002,2019.3,2018.2,5.86113253]
[1772464365561,0.002,2019.3,2018.4,8.61245649]
[1772464365772,0.002,2019.3,2018.4,7.02913253]
[1772464366098,0.002,2019.3,2018.0,5.86113253]
[1772464366298,6.04572829,2019.3,2017.7,1.169]
[1772464366475,0.003,2019.8,2018.4,5.86113253]
[1772464366831,0.003,2019.8,2017.8,1.23897313]
[1772464366832,0.003,2019.8,2018.7,5.86113253]
[1772464367010,0.003,2019.8,2018.9,5.86113253]
[1772464367301,7.69815596,2021.5,2019.1,2.75132396]
[1772464367302,6.33776066,2020.9,2019.1,2.75132396]
[1772464367517,7.97476066,2020.9,2019.4,6.46182149]
[1772464367663,7.97476066,2020.9,2019.1,2.75132396]
[1772464367664,1.637,2020.9,2019.5,7.62982149]
[1772464368000,7.57428399,2021.8,2019.5,7.97531498]
[1772464368215,5.59290568,2022.9,2019.5,7.97531498]
[1772464368216,0.64932588,2022.9,2020.7,2.75132396]
[1772464368424,0.64932588,2022.9,2021.3,2.75132396]
[1772464368623,6.34276066,2024.0,2022.2,6.46182149]
[1772464368778,6.34276066,2024.0,2022.3,1.168]
[1772464368982,6.34276066,2024.0,2022.3,6.46182149]
[1772464369299,6.34276066,2024.0,2021.8,0.14948499]
[1772464369300,6.33776066,2023.8,2021.8,6.46182149]
[1772464369616,6.33776066,2023.8,2021.4,2.61832247]
[1772464369617,6.33776066,2023.4,2021.4,2.61832247]
[1772464369819,6.33776066,2023.4,2021.3,6.46182149]
[1772464370025,1.699536,2023.7,2019.6,7.29864337]
[1772464370026,0.065536,2022.5,2019.6,7.29864337]
[1772464370317,0.065536,2022.5,2020.0,6.46182149]
[1772464370318,6.33776066,2022.5,2020.0,6.46182149]
[1772464370480,6.33776066,2023.6,2021.0,6.46182149]
[1772464370689,6.33776066,2023.5,2021.1,1.167]
[1772464371001,6.33776066,2023.5,2021.2,1.167]
[1772464371205,6.33776066,2023.5,2020.6,7.62882149]
[1772464371206,6.33776066,2023.0,2020.6,7.62882149]
[1772464371402,6.33776066,2022.7,2020.7,6.46182149]
[1772464372006,6.33776066,2022.7,2020.8,1.167]
[1772464372207,6.33776066,2023.2,2021.0,6.46182149]
[1772464372392,7.97076066,2023.2,2021.0,6.46182149]
[1772464372595,2.595008,2023.9,2021.4,2.75132396]
[1772464372796,6.33776066,2023.7,2021.6,6.52735749]
[1772464372999,7.57306059,2023.8,2021.7,7.62782149]
[1772464373190,7.57306059,2023.8,2021.7,1.166]
[1772464373390,7.57306059,2023.8,2021.7,7.62782149]
[1772464373694,7.57306059,2023.8,2021.8,1.166]
[1772464373920,2.86712472,2024.1,2022.1,6.52735749]
[1772464374117,1.632,2024.1,2022.3,6.46182149]
[1772464374436,2.51116981,2024.2,2022.4,7.62782149]
[1772464374837,1.23489083,2024.5,2022.6,6.46182149]
[1772464375146,7.96976066,2024.8,2022.2,2.61832247]
[1772464375147,6.33776066,2024.4,2022.2,2.61832247]
[1772464375299,6.33776066,2024.4,2022.3,7.62782149]
[1772464375486,6.33776066,2024.4,2022.5,6.46182149]
[1772464375911,6.33776066,2024.4,2022.2,2.61832247]
[1772464376106,1.23450693,2025.1,2023.1,6.46182149]
[1772464376416,6.33776066,2024.9,2023.1,1.166]
[1772464376590,6.33776066,2024.9,2023.2,1.166]
[1772464376790,6.33776066,2024.9,2022.5,6.52735749]
[1772464376995,6.33776066,2024.9,2022.6,7.62782149]
[1772464377200,1.631,2025.0,2022.5,0.065536]
[1772464377201,11.4239419,2026.6,2023.2,6.46182149]
[1772464377396,6.33776066,2026.3,2023.7,6.45882149]
[1772464377585,6.33776066,2026.3,2023.6,2.75132396]
[1772464377586,1.633,2026.2,2023.8,6.46182149]
[1772464377785,6.33776066,2026.1,2023.9,1.168]
[1772464378028,6.33776066,2025.9,2023.3,6.46182149]
[1772464378323,6.33776066,2025.4,2023.3,7.62882149]
[1772464378486,2.174174,2025.8,2023.4,0.065536]
[1772464378686,6.33776066,2025.7,2023.7,6.46182149]
[1772464379093,7.57196287,2025.6,2022.9,2.75132396]
[1772464379292,6.33776066,2025.4,2023.2,6.46182149]
[1772464379720,6.33776066,2025.4,2023.3,6.46182149]
[1772464379892,200.0,2024.0,2023.3,6.46182149]
[1772464380222,183.36651562,2024.0,2023.4,6.46182149]
[1772464380520,183.36651562,2024.0,2022.7,1.166]
[1772464381004,183.36651562,2024.0,2022.3,6.46182149]
[1772464381205,183.36651562,2024.0,2022.2,2.61832247]
[1772464381206,1.23523889,2023.9,2022.2,2.61832247]
[1772464381405,188.3074712,2024.0,2022.1,1.166]
[1772464381406,183.36651562,2024.0,2022.1,1.166]
[1772464381624,184.60170146,2024.0,2022.1,6.46182149]
[1772464381933,184.60170146,2024.0,2022.2,7.62782149]
[1772464381934,189.70427628,2024.0,2022.2,7.62782149]
[1772464382229,183.36651562,2024.0,2022.7,6.46182149]
[1772464382527,176.0754507,2024.0,2023.2,6.46182149]
[1772464382729,175.28438578,2024.0,2023.2,6.46182149]
[1772464383227,6.33776066,2025.1,2023.6,2.75132396]
[1772464383450,1.678,2025.4,2023.2,11.4044856]
[1772464383451,6.33776066,2025.3,2023.2,6.46182149]
[1772464383716,6.33776066,2025.3,2023.2,1.165]
[1772464383889,1.23435454,2025.4,2023.2,1.165]
[1772464384096,5.08612179,2025.8,2023.2,1.165]
[1772464384097,2.65249222,2029.4,2025.6,7.14119163]
[1772464384317,0.1516378,2030.4,2028.0,6.46182149]
[1772464384542,0.1516378,2030.4,2026.9,0.6886332]
[1772464384543,6.33776066,2030.2,2026.9,0.6886332]
[1772464384695,6.33776066,2027.9,2026.2,0.431028]
[1772464384891,6.33776066,2027.7,2026.2,0.431028]
[1772464385130,6.33776066,2027.5,2025.3,0.25773248]
[1772464385297,1.735,2027.4,2025.4,1.23067466]
[1772464385494,1.736,2027.3,2025.3,0.25773248]
[1772464385695,6.33776066,2027.5,2025.4,2.81685996]
[1772464385891,1.742,2027.4,2025.9,2.75132396]
[1772464386191,6.33776066,2028.0,2025.5,6.46182149]
[1772464386432,6.33776066,2027.8,2025.4,2.75132396]
[1772464386631,6.33776066,2027.8,2025.3,1.45773248]
[1772464386932,6.33776066,2027.6,2025.3,0.25773248]
[1772464387420,6.33776066,2027.4,2025.3,0.25773248]
[1772464387726,6.33776066,2027.4,2025.3,1.4921136]
[1772464387935,1.74,2027.3,2025.4,0.25985391]
[1772464388119,6.33776066,2028.5,2025.4,7.72735749]
[1772464388296,6.33776066,2028.3,2025.8,0.065536]
[1772464388497,6.33776066,2029.2,2026.6,6.52735749]
[1772464388736,6.33776066,2029.2,2027.1,0.065536]
[1772464388903,0.1516378,2030.4,2028.1,0.065536]
[1772464389111,6.33776066,2030.2,2028.0,2.75132396]
[1772464389332,6.33776066,2030.2,2028.1,1.23267792]
[1772464389514,1.74,2030.1,2028.1,1.23267792]
[1772464389829,1.74,2030.0,2028.2,0.29177057]
[1772464390122,6.33776066,2030.2,2028.1,1.23268083]
[1772464390532,6.33776066,2030.2,2028.2,0.065536]
[1772464390943,6.33776066,2030.2,2028.3,0.31993724]
[1772464390944,1.23146643,2030.1,2028.3,0.31993724]
[1772464391110,1.738,2030.0,2028.3,0.31993724]
[1772464391314,0.1516378,2030.4,2028.5,2.75132396]
[1772464391315,1.8896378,2030.4,2028.5,2.75132396]
[1772464391536,0.1516378,2030.4,2028.6,0.34485391]
[1772464391747,0.1516378,2030.4,2028.6,1.57723091]
[1772464391748,1.8906378,2030.4,2028.6,1.57723091]
[1772464391912,1.8906378,2030.4,2028.6,2.77723091]
[1772464392118,1.8906378,2030.4,2028.6,2.432377]
[1772464392329,6.33776066,2030.2,2028.0,2.75132396]
[1772464392530,6.33776066,2030.2,2028.2,0.065536]
[1772464392730,1.736,2030.1,2028.0,3.05639453]
[1772464392929,1.8876378,2030.4,2028.1,6.83242806]
[1772464393117,1.8876378,2030.4,2028.7,0.065536]
[1772464393319,1.736,2030.3,2028.6,2.75132396]
[1772464393522,0.1516378,2030.4,2028.6,2.75132396]
[1772464393741,0.1516378,2030.4,2029.1,2.75132396]
[1772464393948,0.1516378,2030.4,2028.8,6.46182149]
[1772464394272,1.735,2030.3,2028.8,6.46182149]
[1772464394547,0.1516378,2030.4,2028.9,0.82077333]
[1772464394748,0.1516378,2030.4,2028.9,0.39727324]
[1772464394994,0.00859998,2031.2,2029.2,6.34035009]
[1772464395243,0.00859998,2031.2,2029.4,1.23189119]
[1772464395436,1.74459998,2031.2,2029.4,0.065536]
[1772464395635,0.00859998,2031.2,2029.5,0.74978808]
[1772464395946,0.00859998,2031.2,2029.4,1.199]
[1772464396146,0.00859998,2031.2,2029.6,0.39744071]
[1772464396322,1.74259998,2031.2,2029.5,0.065536]
[1772464396646,1.74259998,2031.2,2029.7,0.065536]
[1772464396647,0.00859998,2031.2,2029.7,0.065536]
[1772464396822,0.00859998,2031.2,2029.8,0.39744071]
[1772464397150,1.733,2031.1,2029.4,0.065536]
[1772464397337,1.23098133,2030.9,2029.0,0.065536]
[1772464397537,7.5590348,2030.9,2028.9,1.198]
[1772464397843,6.32805347,2030.7,2028.3,1.197]
[1772464398260,6.32805347,2030.5,2028.3,1.197]
[1772464398744,6.32805347,2030.5,2028.5,0.065536]
[1772464398963,1.73,2030.4,2028.5,0.065536]
[1772464399185,1.73,2030.3,2028.5,0.065536]
[1772464399321,1.729,2030.2,2028.5,0.065536]
[1772464399515,2.96040577,2030.2,2028.6,0.32570848]
[1772464399717,6.32805347,2030.1,2027.7,4.19490846]
[1772464399942,1.728,2030.0,2028.5,0.32570848]
[1772464400251,1.728,2030.0,2028.1,0.065536]
[1772464400433,1.727,2029.9,2028.3,0.065536]
[1772464400628,1.726,2029.8,2028.3,0.062536]
[1772464400856,6.32805347,2029.7,2028.0,2.75132396]
[1772464401031,1.726,2029.8,2026.9,6.46442429]
[1772464401032,6.32805347,2029.5,2027.1,2.75132396]
[1772464401227,6.32805347,2029.5,2027.1,10.44902409]
[1772464401429,6.32805347,2029.5,2027.5,2.75132396]
[1772464401627,8.05405347,2029.4,2027.5,2.75132396]
[1772464401831,1.725,2029.3,2027.5,2.75132396]
[1772464402149,6.32805347,2029.2,2027.0,2.75132396]
[1772464402343,6.32805347,2029.2,2027.1,1.193]
[1772464402665,6.32805347,2029.2,2027.3,0.065536]
[1772464402833,1.723,2029.1,2027.3,0.065536]
[1772464403039,6.32805347,2029.0,2027.2,0.065536]
[1772464403220,6.32805347,2029.0,2027.1,1.94587166]
[1772464403221,1.723,2028.9,2027.1,1.94587166]
[1772464403424,1.723,2028.8,2027.2,0.065536]
[1772464403719,1.722,2028.7,2026.2,1.23382515]
[1772464403923,1.722,2028.7,2025.3,4.93743224]
[1772464403924,6.32805347,2028.6,2026.0,1.94587166]
[1772464404134,6.32805347,2028.2,2026.0,1.94587166]
[1772464404442,6.32805347,2028.0,2026.0,1.94587166]
[1772464404628,6.32805347,2028.0,2026.4,1.94587166]
[1772464404955,1.72,2027.9,2026.4,1.94587166]
[1772464405266,6.32805347,2028.0,2026.0,1.94587166]
[1772464405267,1.719,2027.8,2026.0,1.94587166]
[1772464405626,1.719,2027.8,2025.7,1.188]
[1772464405627,7.56097747,2027.7,2025.7,1.188]
[1772464405930,7.56097747,2027.7,2025.6,1.94587166]
[1772464406138,6.32805347,2027.5,2025.6,1.94587166]
[1772464406335,6.32805347,2027.3,2025.3,1.94587166]
[1772464406725,6.32805347,2027.1,2025.3,1.94587166]
[1772464406932,6.32805347,2027.0,2025.0,1.94587166]
[1772464407260,1.717,2027.2,2023.8,7.15875019]
[1772464407261,6.32805347,2026.6,2024.6,1.94587166]
[1772464407558,6.32805347,2026.6,2024.0,2.75782656]
[1772464407559,6.32805347,2026.4,2024.2,1.94587166]
[1772464407858,1.23365408,2026.5,2023.8,4.16342809]
[1772464407859,6.32805347,2026.2,2023.8,4.16342809]
[1772464408060,6.32805347,2026.0,2023.8,4.16342809]
[1772464408270,6.32805347,2025.8,2023.6,1.94587166]
[1772464408760,6.32805347,2025.0,2022.2,1.23622018]
[1772464409053,6.32805347,2024.7,2022.2,9.64651613]
[1772464409256,1.716,2024.6,2022.6,1.94587166]
[1772464409452,6.32805347,2024.7,2023.0,1.94587166]
[1772464409626,1.715,2024.6,2023.0,1.94587166]
[1772464409828,8.04305347,2024.6,2022.6,1.94587166]
[1772464410028,8.04305347,2024.5,2022.7,1.186]
[1772464410323,4.93864172,2024.9,2022.8,0.065536]
[1772464410324,6.32805347,2024.4,2022.8,0.065536]
[1772464410528,8.04205347,2024.3,2022.4,1.185]
[1772464410727,3.18068347,2024.6,2022.2,1.94587166]
[1772464410728,6.32805347,2024.2,2022.2,1.94587166]
[1772464410962,6.32805347,2024.1,2022.2,1.94587166]
[1772464411253,6.32805347,2024.1,2022.3,1.185]
[1772464411254,1.713,2024.0,2022.3,1.185]
[1772464411453,1.713,2024.3,2022.4,1.23615506]
[1772464411654,1.713,2024.2,2022.4,1.23615506]
[1772464411956,6.32805347,2024.1,2022.3,3.13087166]
[1772464412158,1.712,2024.0,2022.3,1.94587166]
[1772464412460,6.32805347,2024.1,2022.5,1.94587166]
[1772464412629,6.32805347,2024.1,2022.1,1.249536]
[1772464412630,1.712,2024.6,2023.0,0.065536]
[1772464412954,1.711,2024.9,2023.4,0.065536]
[1772464413159,6.32805347,2025.1,2023.3,1.94587166]
[1772464413358,1.711,2024.8,2023.3,1.94587166]
[1772464413664,6.32805347,2025.1,2023.5,0.065536]
[1772464413953,3.8529537,2025.9,2024.1,1.94587166]
[1772464413954,6.32805347,2025.7,2024.1,1.94587166]
[1772464414152,6.32805347,2025.6,2024.1,1.94587166]
[1772464414590,8.03905347,2025.5,2023.7,1.94587166]
[1772464414745,1.71,2025.4,2023.7,1.94587166]
[1772464414925,6.32805347,2025.5,2023.8,0.065536]
[1772464415123,4.93398984,2026.8,2024.6,1.94587166]
[1772464415124,6.32805347,2026.1,2024.6,1.94587166]
[1772464415351,6.32805347,2026.1,2024.6,1.92253341]
[1772464415662,1.71,2026.5,2025.4,1.94587166]
[1772464415842,6.32805347,2027.1,2025.1,0.065536]
[1772464415843,1.71,2026.6,2025.1,0.065536]
[1772464416038,7.5613424,2027.1,2025.1,0.065536]
[1772464416243,6.32805347,2026.9,2025.2,1.94587166]
[1772464416858,1.23328893,2027.1,2024.6,1.94587166]
[1772464416859,6.32805347,2026.4,2024.6,1.94587166]
[1772464417354,7.56181858,2026.4,2024.2,1.94587166]
[1772464417533,1.712,2026.3,2024.2,1.94587166]
[1772464417730,8.03905347,2026.4,2024.6,1.94587166]
[1772464417930,6.32805347,2026.4,2024.5,1.94587166]
[1772464418156,6.32805347,2026.4,2024.1,1.23510087]
[1772464418157,6.32805347,2026.4,2024.9,1.94587166]
[1772464418484,0.065536,2027.4,2024.1,7.69952516]
[1772464418485,6.32805347,2027.0,2025.3,1.94587166]
[1772464418680,7.56141441,2027.0,2025.3,1.94587166]
[1772464418828,7.56141441,2027.0,2025.0,0.065536]
[1772464419186,7.56141441,2027.0,2024.0,11.40489165]
[1772464419187,6.32805347,2026.8,2024.5,1.94587166]
[1772464419483,6.32805347,2026.4,2024.4,0.065536]
[1772464419759,1.23365408,2026.5,2024.5,1.94587166]
[1772464419760,6.32805347,2026.2,2024.5,1.94587166]
[1772464419959,6.32805347,2026.2,2024.4,0.065536]
[1772464420460,6.32805347,2026.2,2024.1,1.94587166]
[1772464420672,6.32805347,2026.0,2024.1,1.94587166]
[1772464420878,6.32805347,2025.8,2024.1,1.94587166]
[1772464421064,1.706,2025.7,2024.1,1.94587166]
[1772464421773,7.56178667,2026.4,2024.2,0.065536]
[1772464421975,8.03305347,2026.1,2024.2,0.065536]
[1772464422163,6.32805347,2026.0,2024.2,0.065536]
[1772464422543,6.32805347,2025.8,2024.1,1.94587166]
[1772464422758,6.32805347,2025.8,2023.7,1.94587166]
[1772464422969,6.32805347,2025.8,2023.8,0.065536]
[1772464423170,6.32805347,2025.6,2023.8,0.065536]
[1772464423562,7.56226632,2025.6,2023.8,0.065536]
[1772464424172,1.7,2025.5,2023.8,0.065536]
[1772464424770,8.02705347,2025.6,2024.1,1.94587166]
[1772464425154,7.56231661,2025.5,2023.7,3.11887166]
[1772464425475,7.56231661,2025.5,2023.7,1.94587166]
[1772464425772,7.56243849,2025.3,2023.7,1.94587166]
[1772464426278,1.697,2025.2,2023.5,0.001]
[1772464426480,6.32805347,2025.1,2023.5,0.001]
[1772464426984,6.32805347,2025.6,2023.8,0.065536]
[1772464427162,8.02405347,2025.6,2024.1,1.94587166]
[1772464427473,6.32805347,2025.6,2024.1,1.94587166]
[1772464427871,6.32805347,2025.6,2024.1,3.18097017]
[1772464428183,1.695,2025.8,2024.3,0.065536]
[1772464428399,7.81575301,2026.1,2024.5,1.94587166]
[1772464428698,7.81475301,2026.1,2024.5,1.94587166]
[1772464429285,6.12075301,2026.1,2024.5,1.94587166]
[1772464429486,7.81375301,2026.1,2024.5,1.94587166]
[1772464429672,6.12075301,2026.1,2024.2,1.30059182]
[1772464429987,6.12075301,2026.1,2024.5,1.94587166]
[1772464430196,6.12075301,2026.1,2024.6,0.065536]
[1772464430420,7.81275301,2027.1,2025.3,1.94587166]
[1772464430630,7.81275301,2027.1,2025.7,1.94587166]
[1772464430896,6.12075301,2027.8,2025.8,0.065536]
[1772464431079,1.691,2027.4,2025.8,0.065536]
[1772464431267,6.12075301,2027.8,2026.1,1.94587166]
[1772464431468,6.12075301,2027.7,2026.1,1.94587166]
[1772464431667,6.12075301,2027.7,2026.0,1.4]
[1772464431668,1.691,2027.6,2026.0,1.4]
[1772464432065,6.12075301,2027.7,2026.0,1.4]
[1772464432293,6.12075301,2027.4,2026.0,1.4]
[1772464432493,7.80975301,2027.4,2026.0,1.4]
[1772464432880,6.12075301,2027.4,2026.0,1.4]
[1772464433195,2.61890743,2027.9,2026.4,1.94587166]
[1772464433196,8.73966044,2027.9,2026.4,1.94587166]
[1772464433395,6.12075301,2027.9,2026.4,1.94587166]
[1772464433766,4.93010318,2028.4,2026.8,1.94587166]
[1772464433767,6.12075301,2028.4,2026.8,1.94587166]
[1772464434099,1.94587166,2029.1,2027.3,0.065536]
[1772464434100,7.35288706,2029.0,2027.3,0.065536]
[1772464434263,7.35288706,2029.0,2026.9,1.164]
[1772464434461,2.61890743,2030.0,2026.9,1.164]
[1772464434462,6.12075301,2031.8,2029.0,1.527172]
[1772464434665,0.005,2032.0,2029.0,1.527172]
[1772464434666,6.12075301,2031.3,2030.0,1.94587166]
[1772464434888,6.12075301,2031.3,2028.9,5.83761498]
[1772464434889,6.14538318,2031.0,2029.3,1.94587166]
[1772464435094,6.14538318,2031.0,2029.2,1.94587166]
[1772464435260,7.35173434,2030.9,2029.2,1.94587166]
[1772464435465,6.12075301,2030.7,2027.7,2.02069727]
[1772464435701,6.12075301,2030.1,2028.3,1.94587166]
[1772464435901,6.12075301,2029.9,2028.3,1.94587166]
[1772464436083,6.12075301,2029.9,2028.0,0.065536]
[1772464436285,6.12075301,2029.9,2028.2,0.065536]
[1772464436286,6.12075301,2029.8,2028.2,0.065536]
[1772464436481,4.92464727,2030.7,2028.6,1.527172]
[1772464436690,0.1516378,2034.2,2030.9,1.524172]
[1772464436691,6.12075301,2033.8,2030.9,1.524172]
[1772464436933,1.38062268,2034.2,2030.4,7.78348664]
[1772464436934,6.12075301,2033.5,2032.3,0.14948499]
[1772464437130,6.12075301,2033.5,2031.5,0.25705707]
[1772464437410,6.12075301,2033.3,2031.6,0.065536]
[1772464437615,0.05424352,2033.2,2031.9,1.94587166]
[1772464437819,1.2296493,2033.1,2031.9,1.94587166]
[1772464438021,7.40464583,2033.1,2031.5,0.25705707]
[1772464438219,6.12075301,2032.9,2031.5,0.25705707]
[1772464438586,0.05424352,2032.8,2031.5,0.25705707]
[1772464439120,0.05424352,2032.7,2031.5,0.25705707]
[1772464439322,6.12075301,2032.9,2031.5,0.25705707]
[1772464439620,1.73,2033.4,2030.3,1.94587166]
[1772464439621,6.12075301,2032.6,2030.3,1.94587166]
[1772464439795,6.12075301,2031.8,2029.8,0.25695013]
[1772464440117,6.12075301,2031.6,2029.8,1e-08]
[1772464440329,6.12075301,2031.3,2029.8,1e-08]
[1772464440493,6.12075301,2032.0,2030.5,1.94587166]
[1772464440689,6.12075301,2031.8,2029.8,1e-08]
[1772464440998,6.12075301,2031.6,2029.8,1e-08]
[1772464441722,6.12075301,2031.4,2029.8,1e-08]
[1772464442031,6.12075301,2031.3,2029.8,1e-08]
[1772464442321,6.12075301,2031.3,2029.6,0.065536]
[1772464443106,6.12075301,2031.1,2029.5,1.4]
[1772464443315,6.12075301,2030.9,2029.5,1.4]
[1772464443714,6.12075301,2030.7,2029.5,1.4]
[1772464444127,6.12075301,2030.7,2028.9,1.94587166]
[1772464444513,6.12075301,2030.7,2028.5,1.94587166]
[1772464444827,6.12075301,2030.5,2028.4,1.94587166]
[1772464445027,4.92416781,2031.2,2028.4,1.94587166]
[1772464445028,1.23043606,2031.8,2030.4,1.94587166]
[1772464445327,6.12075301,2031.9,2030.4,1.94587166]
[1772464445626,6.12075301,2031.9,2029.4,1.524172]
[1772464445627,7.3511414,2031.9,2030.0,1.94587166]
[1772464446023,7.3511414,2031.9,2029.7,0.065536]
[1772464446024,6.12075301,2031.7,2029.7,0.065536]
[1772464446227,6.12075301,2031.4,2029.2,1.94587166]
[1772464446428,1.94587166,2031.5,2029.2,1.94587166]
[1772464446429,6.12075301,2031.2,2029.2,1.94587166]
[1772464446601,6.12075301,2031.2,2028.9,0.065536]
[1772464446805,6.12075301,2031.8,2030.3,0.065536]
[1772464447001,7.35118907,2031.8,2029.9,0.065536]
[1772464447221,7.35118907,2031.8,2029.8,1.4]
[1772464447421,6.12075301,2031.2,2029.8,0.64239524]
[1772464447625,6.12075301,2031.0,2029.8,0.64239524]
[1772464447821,6.12075301,2030.8,2029.8,0.64239524]
[1772464448030,0.002,2031.3,2029.8,0.64239524]
[1772464448235,2.73197032,2031.9,2030.8,1.94587166]
[1772464448530,6.12075301,2032.2,2030.8,1.94587166]
[1772464448733,6.12075301,2032.9,2031.2,1.94587166]
[1772464448937,7.35052328,2032.9,2031.2,1.94587166]
[1772464449108,6.12075301,2032.9,2031.2,1.94587166]
[1772464449303,7.35052328,2032.9,2030.8,1.94587166]
[1772464449545,7.35052328,2032.9,2030.9,0.065536]
[1772464449749,7.35052328,2032.9,2030.8,1.94587166]
[1772464449919,6.12075301,2032.7,2031.2,1.94587166]
[1772464450246,6.12075301,2033.3,2031.5,1.94587166]
[1772464450748,6.12075301,2033.1,2031.5,2.26264552]
[1772464450964,6.12075301,2033.1,2031.6,0.065536]
[1772464451111,2.75,2033.6,2031.9,1.94587166]
[1772464451440,6.12075301,2033.5,2032.0,0.065536]
[1772464451642,6.12075301,2033.5,2032.1,1.94587166]
[1772464452017,6.12075301,2034.1,2032.5,1.94587166]
[1772464452723,6.12075301,2034.1,2032.6,0.065536]
[1772464452922,0.1516378,2034.2,2033.4,1.94587166]
[1772464453119,2.75,2034.8,2032.6,0.065536]
[1772464453120,6.12075301,2034.7,2032.7,0.065536]
[1772464453314,6.12075301,2034.7,2032.3,0.065536]
[1772464453515,6.12075301,2034.5,2032.3,0.065536]
[1772464453848,3.17449363,2034.8,2030.9,3.21140286]
[1772464453849,6.12075301,2034.1,2030.9,3.21140286]
[1772464454016,6.43129485,2033.3,2029.6,4.92699105]
[1772464454214,6.43129485,2032.6,2030.4,1.94587166]
[1772464454415,6.43129485,2032.4,2030.1,1.94587166]
[1772464454646,6.43129485,2032.2,2030.1,1.94587166]
[1772464454861,6.43129485,2032.2,2030.6,1.94587166]
[1772464455014,6.43129485,2032.0,2030.2,1.94587166]
[1772464455452,6.43129485,2031.8,2029.7,0.001]
[1772464455611,6.43129485,2031.6,2029.7,0.001]
[1772464455949,2.75,2031.9,2029.6,1.94587166]
[1772464455950,6.43129485,2031.4,2029.9,1.94587166]
[1772464456248,6.43129485,2031.4,2029.5,0.001]
[1772464457050,6.43129485,2031.2,2029.5,0.001]
[1772464457554,1.23061013,2031.6,2029.6,1.94587166]
[1772464457851,6.39717096,2031.3,2029.6,0.065536]
[1772464458035,6.39717096,2031.3,2029.5,1.94687166]
[1772464458036,6.39717096,2031.1,2029.5,1.94687166]
[1772464458236,6.39717096,2031.1,2029.5,0.001]
[1772464458436,1.23067834,2031.4,2029.5,0.001]
[1772464458437,6.39717096,2030.9,2029.5,0.001]
[1772464459149,3.17655,2031.4,2029.5,0.001]
[1772464459150,6.39717096,2030.7,2029.5,0.001]
[1772464459832,6.39717096,2030.7,2029.5,1.94687166]
[1772464461068,6.39717096,2031.3,2030.3,1.94587166]
[1772464461260,6.39717096,2031.3,2029.6,0.065536]
[1772464461463,6.39717096,2031.3,2029.7,1.94587166]
[1772464461464,1.23079952,2031.2,2029.7,1.94587166]
[1772464461763,6.39717096,2031.2,2029.7,1.94587166]
[1772464462253,8.15617096,2031.2,2029.7,1.94587166]
[1772464462425,9.38699679,2031.2,2029.7,1.94587166]
[1772464462626,6.39717096,2031.2,2029.7,1.94587166]
[1772464462825,6.39717096,2031.0,2029.5,0.001]
[1772464463631,6.39717096,2031.0,2029.7,0.001]
[1772464464128,6.39717096,2031.0,2029.5,0.001]
[1772464464129,6.39717096,2030.8,2029.5,0.001]
[1772464464594,6.39717096,2030.6,2029.5,0.001]
[1772464464881,6.39717096,2030.4,2029.5,0.001]
[1772464465040,6.39717096,2030.4,2028.3,2.72067694]
[1772464465224,6.39717096,2030.2,2027.8,1.201]
[1772464465577,6.39717096,2030.0,2027.8,1.2983992]
[1772464465778,1.751,2029.9,2028.2,2.72067694]
[1772464465984,6.39717096,2030.0,2028.3,0.065536]
[1772464466181,1.75,2030.3,2028.8,0.065536]
[1772464466386,8.14717096,2030.3,2028.8,0.065536]
[1772464466674,6.39717096,2030.3,2029.2,2.72067694]
[1772464466876,6.39717096,2030.9,2029.2,2.72067694]
[1772464467178,0.002,2031.0,2029.7,2.72067694]
[1772464467688,6.39717096,2031.5,2029.8,0.065536]
[1772464468549,6.39717096,2031.5,2030.0,0.065536]
[1772464468755,0.003,2031.6,2030.2,2.72067694]
[1772464469067,4.494,2031.9,2029.9,1.23158776]
[1772464469068,6.39717096,2032.8,2031.2,2.72067694]
[1772464469384,6.39717096,2032.6,2030.7,2.72067694]
[1772464469561,6.39717096,2032.6,2030.3,0.065536]
[1772464469885,1.22980313,2032.9,2030.7,2.72067694]
[1772464469886,6.39717096,2032.5,2030.7,2.72067694]
[1772464470091,7.62723002,2032.5,2030.4,0.35305872]
[1772464470395,7.62723002,2032.5,2030.4,2.72067694]
[1772464470689,6.39717096,2032.3,2030.5,0.065536]
[1772464470892,6.39717096,2032.2,2030.5,0.065536]
[1772464471184,6.39717096,2032.2,2030.1,1.4]
[1772464471945,6.39717096,2032.0,2030.1,1.4]
[1772464472144,8.13717096,2031.9,2030.1,1.4]
[1772464472364,1.74,2031.8,2030.1,1.4]
[1772464472557,6.39717096,2031.8,2030.1,1.4]
[1772464472778,1.739,2031.7,2030.1,1.4]
[1772464472982,6.39717096,2031.7,2030.2,1.29694177]
[1772464473187,6.39717096,2031.7,2030.2,0.065536]
[1772464473764,6.39717096,2031.7,2030.1,1.4]
[1772464473987,6.39717096,2031.5,2030.1,1.4]